[Event "*** Titled Tuesday Blitz"]
[Site "Chess.com"]
[Date "2019.03.05"]
[Round "4"]
[White "HindsightIs2700"]
[Black "MFguimaraes"]
[Result "0-1"]
[WhiteElo "2291"]
[BlackElo "2315"]
[TimeControl "180+2"]
[EndTime "13:55:10 PST"]
[Termination "MFguimaraes won by checkmate"]

1. e4 {[%clk 0:03:01.9]} 1... e5 {[%clk 0:03:00.6]} 2. Nf3 {[%clk 0:03:01.9]}
2... Nc6 {[%clk 0:02:55.2]} 3. Bc4 {[%clk 0:03:02.8]} 3... Nf6 {[%clk
0:02:55.6]} 4. d3 {[%clk 0:03:03.6]} 4... h6 {[%clk 0:02:56.1]} 5. O-O {[%clk
0:03:02.3]} 5... g5 {[%clk 0:02:41.3]} 6. d4 {[%clk 0:02:47.6]} 6... exd4 {[%clk
0:02:36.7]} 7. e5 {[%clk 0:02:38.3]} 7... d5 {[%clk 0:02:36.8]} 8. Bb5 {[%clk
0:02:21.7]} 8... Ne4 {[%clk 0:02:36.5]} 9. Nxd4 {[%clk 0:02:22.1]} 9... Bd7
{[%clk 0:02:35.2]} 10. Bxc6 {[%clk 0:02:11.6]} 10... bxc6 {[%clk 0:02:34.1]} 11.
f4 {[%clk 0:01:15.5]} 11... Bc5 {[%clk 0:02:27]} 12. Kh1 {[%clk 0:01:16.4]}
12... g4 {[%clk 0:02:24.1]} 13. f5 {[%clk 0:01:15.1]} 13... Qh4 {[%clk
0:02:18.4]} 14. e6 {[%clk 0:00:49.7]} 14... Ng3+ {[%clk 0:02:12.7]} 15. Kg1
{[%clk 0:00:50.1]} 15... Bxd4+ {[%clk 0:02:14.1]} 16. Rf2 {[%clk 0:00:13.3]}
16... Bxf2+ {[%clk 0:02:13.4]} 17. Kxf2 {[%clk 0:00:09.3]} 17... Ne4+ {[%clk
0:02:12.3]} 18. Kg1 {[%clk 0:00:10.6]} 18... fxe6 {[%clk 0:01:17]} 19. fxe6
{[%clk 0:00:11.6]} 19... Bxe6 {[%clk 0:01:12.3]} 20. Be3 {[%clk 0:00:12.2]}
20... O-O {[%clk 0:01:11.7]} 21. Nd2 {[%clk 0:00:12.3]} 21... g3 {[%clk
0:01:10.5]} 22. h3 {[%clk 0:00:12.2]} 22... Bxh3 {[%clk 0:01:11.8]} 23. gxh3
{[%clk 0:00:13]} 23... Qxh3 {[%clk 0:01:12.9]} 24. Nf3 {[%clk 0:00:13.5]} 24...
Rxf3 {[%clk 0:01:10.2]} 25. Qxf3 {[%clk 0:00:14.2]} 25... Qh2+ {[%clk
0:01:01.1]} 26. Kf1 {[%clk 0:00:15]} 26... Rf8 {[%clk 0:01:02.9]} 27. Qxf8+
{[%clk 0:00:14.9]} 27... Kxf8 {[%clk 0:01:04.1]} 28. Ke1 {[%clk 0:00:16.2]}
28... g2 {[%clk 0:01:00.1]} 29. Bg1 {[%clk 0:00:16.5]} 29... Qxg1+ {[%clk
0:01:00.8]} 30. Ke2 {[%clk 0:00:18]} 30... Qf2+ {[%clk 0:01:02.2]} 31. Kd3
{[%clk 0:00:18.6]} 31... Qd2# {[%clk 0:01:02]} 0-1

[Event "*** Titled Tuesday Blitz"]
[Site "Chess.com"]
[Date "2019.03.05"]
[Round "4"]
[White "leoo2001"]
[Black "Zq1"]
[Result "1-0"]
[WhiteElo "2696"]
[BlackElo "2542"]
[TimeControl "180+2"]
[EndTime "13:55:12 PST"]
[Termination "leoo2001 won by resignation"]

1. e4 {[%clk 0:03:01.2]} 1... c5 {[%clk 0:03:00.5]} 2. Nf3 {[%clk 0:03:00.5]}
2... d6 {[%clk 0:03:01.6]} 3. d4 {[%clk 0:03:00.3]} 3... cxd4 {[%clk 0:03:02.7]}
4. Nxd4 {[%clk 0:03:01.5]} 4... Nf6 {[%clk 0:03:04.1]} 5. Nc3 {[%clk 0:03:01.5]}
5... Nc6 {[%clk 0:03:05.1]} 6. Bg5 {[%clk 0:03:00.4]} 6... g6 {[%clk 0:03:06.3]}
7. Bxf6 {[%clk 0:02:53.3]} 7... exf6 {[%clk 0:03:07.1]} 8. Bb5 {[%clk
0:02:53.4]} 8... Bd7 {[%clk 0:03:07.6]} 9. Nde2 {[%clk 0:02:53.4]} 9... Be7
{[%clk 0:03:08.1]} 10. O-O {[%clk 0:02:49.7]} 10... O-O {[%clk 0:03:09.1]} 11.
Nd5 {[%clk 0:02:43]} 11... a6 {[%clk 0:03:08.3]} 12. Bd3 {[%clk 0:02:42.3]}
12... Ne5 {[%clk 0:03:07.4]} 13. f4 {[%clk 0:02:39.1]} 13... Nxd3 {[%clk
0:03:07.3]} 14. cxd3 {[%clk 0:02:35.3]} 14... f5 {[%clk 0:03:07.6]} 15. Nec3
{[%clk 0:02:28.8]} 15... fxe4 {[%clk 0:02:48.9]} 16. dxe4 {[%clk 0:02:27.6]}
16... Bf6 {[%clk 0:02:41.2]} 17. Qd2 {[%clk 0:02:09.2]} 17... Bc6 {[%clk
0:02:31.3]} 18. Rad1 {[%clk 0:02:04]} 18... Re8 {[%clk 0:02:18.9]} 19. Rfe1
{[%clk 0:01:54.5]} 19... Bg7 {[%clk 0:02:13.3]} 20. Qf2 {[%clk 0:01:55.9]} 20...
Rc8 {[%clk 0:02:03.3]} 21. Nb6 {[%clk 0:01:54.8]} 21... Rc7 {[%clk 0:02:03.1]}
22. e5 {[%clk 0:01:56.3]} 22... Rce7 {[%clk 0:01:37.7]} 23. Nc4 {[%clk
0:01:50.6]} 23... d5 {[%clk 0:01:21.4]} 24. Nd6 {[%clk 0:01:51.1]} 24... Rf8
{[%clk 0:01:16.1]} 25. Nxd5 {[%clk 0:01:52.4]} 25... Bxd5 {[%clk 0:00:56.4]} 26.
Rxd5 {[%clk 0:01:53]} 26... Rd7 {[%clk 0:00:57.5]} 27. Red1 {[%clk 0:01:50]}
27... Qc7 {[%clk 0:00:47.3]} 28. h3 {[%clk 0:01:50.4]} 28... Qc6 {[%clk
0:00:47]} 29. Kh2 {[%clk 0:01:49.5]} 29... h5 {[%clk 0:00:41.8]} 30. Qg3 {[%clk
0:01:43.3]} 30... Qa4 {[%clk 0:00:35.7]} 31. f5 {[%clk 0:01:34.8]} 31... h4
{[%clk 0:00:33.5]} 32. Qe3 {[%clk 0:01:33.5]} 32... Qxa2 {[%clk 0:00:25]} 33. f6
{[%clk 0:01:29.6]} 33... Bh8 {[%clk 0:00:25.1]} 34. R1d4 {[%clk 0:01:30.3]}
34... Rfd8 {[%clk 0:00:18.7]} 35. Rxh4 {[%clk 0:01:27.7]} 1-0

[Event "*** Titled Tuesday Blitz"]
[Site "Chess.com"]
[Date "2019.03.05"]
[Round "4"]
[White "gunslinger222"]
[Black "zeitnot2006"]
[Result "0-1"]
[WhiteElo "2185"]
[BlackElo "2126"]
[TimeControl "180+2"]
[EndTime "13:55:23 PST"]
[Termination "zeitnot2006 won by resignation"]

1. d4 {[%clk 0:03:01.9]} 1... g6 {[%clk 0:02:57.4]} 2. c4 {[%clk 0:03:01.7]}
2... Bg7 {[%clk 0:02:58]} 3. Nf3 {[%clk 0:03:02.2]} 3... Nf6 {[%clk 0:02:57.9]}
4. Nc3 {[%clk 0:03:02.5]} 4... O-O {[%clk 0:02:58.5]} 5. g3 {[%clk 0:03:03.6]}
5... d6 {[%clk 0:02:55.7]} 6. Bg2 {[%clk 0:03:04.4]} 6... c6 {[%clk 0:02:47]} 7.
O-O {[%clk 0:03:04.9]} 7... Bg4 {[%clk 0:02:43.6]} 8. Ne1 {[%clk 0:02:59.5]}
8... Be6 {[%clk 0:02:38.9]} 9. d5 {[%clk 0:02:55.4]} 9... cxd5 {[%clk
0:02:39.4]} 10. cxd5 {[%clk 0:02:57.3]} 10... Bd7 {[%clk 0:02:39]} 11. Qb3
{[%clk 0:02:51.8]} 11... b6 {[%clk 0:02:29.1]} 12. Nd3 {[%clk 0:02:38.3]} 12...
Na6 {[%clk 0:02:23.6]} 13. Bg5 {[%clk 0:02:24.8]} 13... Nc5 {[%clk 0:02:11]} 14.
Nxc5 {[%clk 0:02:24.7]} 14... bxc5 {[%clk 0:02:12.9]} 15. Qc4 {[%clk 0:02:19.8]}
15... Ng4 {[%clk 0:01:54.5]} 16. h3 {[%clk 0:01:49.7]} 16... Ne5 {[%clk
0:01:52.5]} 17. Qh4 {[%clk 0:01:47.7]} 17... f6 {[%clk 0:01:42.9]} 18. Bf4
{[%clk 0:01:42]} 18... Nf7 {[%clk 0:01:30.2]} 19. Be3 {[%clk 0:01:37]} 19... Rb8
{[%clk 0:01:14.5]} 20. b3 {[%clk 0:01:21.3]} 20... Rb4 {[%clk 0:00:55.1]} 21. g4
{[%clk 0:01:21.1]} 21... f5 {[%clk 0:00:50.8]} 22. f4 {[%clk 0:01:17.7]} 22...
Bxc3 {[%clk 0:00:46.5]} 23. Rac1 {[%clk 0:01:16.9]} 23... Bf6 {[%clk 0:00:42.1]}
24. Qg3 {[%clk 0:01:17.8]} 24... Bd4 {[%clk 0:00:31.3]} 25. a3 {[%clk
0:01:11.2]} 25... Rxb3 {[%clk 0:00:28.6]} 26. Rf3 {[%clk 0:01:06.8]} 26... Bxe3+
{[%clk 0:00:23.3]} 27. Rxe3 {[%clk 0:01:08.7]} 27... Rxe3 {[%clk 0:00:25]} 28.
Qxe3 {[%clk 0:01:10.5]} 28... fxg4 {[%clk 0:00:26.8]} 29. hxg4 {[%clk
0:01:11.3]} 29... Bxg4 {[%clk 0:00:28.4]} 30. Rb1 {[%clk 0:01:11.1]} 30... Qa5
{[%clk 0:00:25.1]} 31. Kf2 {[%clk 0:01:10.7]} 31... Qa4 {[%clk 0:00:22.6]} 32.
Kg3 {[%clk 0:01:08.7]} 32... Nh6 {[%clk 0:00:18.4]} 33. Be4 {[%clk 0:01:08.9]}
33... Bf5 {[%clk 0:00:17.4]} 34. Bxf5 {[%clk 0:01:08.9]} 34... Nxf5+ {[%clk
0:00:18.1]} 35. Kf3 {[%clk 0:01:09.6]} 35... Nxe3 {[%clk 0:00:20]} 0-1

[Event "*** Titled Tuesday Blitz"]
[Site "Chess.com"]
[Date "2019.03.05"]
[Round "4"]
[White "RiskyDecision"]
[Black "alpasya2009"]
[Result "0-1"]
[WhiteElo "2455"]
[BlackElo "2548"]
[TimeControl "180+2"]
[EndTime "13:55:35 PST"]
[Termination "alpasya2009 won by resignation"]

1. d4 {[%clk 0:03:01.9]} 1... Nf6 {[%clk 0:03:00.6]} 2. c4 {[%clk 0:03:02.5]}
2... g6 {[%clk 0:03:01.7]} 3. g3 {[%clk 0:03:02.7]} 3... Bg7 {[%clk 0:03:02.4]}
4. Bg2 {[%clk 0:03:03.5]} 4... c6 {[%clk 0:03:03.4]} 5. e4 {[%clk 0:03:00.4]}
5... d6 {[%clk 0:02:57.3]} 6. Nc3 {[%clk 0:03:00.8]} 6... O-O {[%clk 0:02:56.3]}
7. Nf3 {[%clk 0:03:01.5]} 7... Nbd7 {[%clk 0:02:56.1]} 8. O-O {[%clk 0:03:02.1]}
8... e5 {[%clk 0:02:55.3]} 9. h3 {[%clk 0:02:58.7]} 9... exd4 {[%clk 0:02:53.4]}
10. Nxd4 {[%clk 0:02:59.2]} 10... Re8 {[%clk 0:02:54.5]} 11. Re1 {[%clk
0:02:59.4]} 11... Nc5 {[%clk 0:02:55.7]} 12. Qc2 {[%clk 0:02:51.4]} 12... a5
{[%clk 0:02:55.5]} 13. Be3 {[%clk 0:02:44.6]} 13... a4 {[%clk 0:02:53.6]} 14.
Rad1 {[%clk 0:02:40]} 14... Nfd7 {[%clk 0:02:52.8]} 15. Bf1 {[%clk 0:02:34]}
15... Qa5 {[%clk 0:02:50.8]} 16. f4 {[%clk 0:02:19.5]} 16... a3 {[%clk
0:02:39.5]} 17. b3 {[%clk 0:02:14.2]} 17... Nb8 {[%clk 0:02:40.2]} 18. Bf2
{[%clk 0:02:05]} 18... Nba6 {[%clk 0:02:40.2]} 19. g4 {[%clk 0:01:41.5]} 19...
Nb4 {[%clk 0:02:39.7]} 20. Qd2 {[%clk 0:01:37.3]} 20... Bd7 {[%clk 0:02:27.1]}
21. Re3 {[%clk 0:01:34.1]} 21... Rad8 {[%clk 0:02:21.8]} 22. Nf3 {[%clk
0:01:22.4]} 22... Bxc3 {[%clk 0:02:08]} 23. Qxc3 {[%clk 0:01:17.1]} 23... Nxe4
{[%clk 0:02:06.1]} 24. Rxe4 {[%clk 0:01:06.8]} 24... Rxe4 {[%clk 0:02:08]} 25.
Rxd6 {[%clk 0:00:51.7]} 25... Bxg4 {[%clk 0:01:52.6]} 26. Rxd8+ {[%clk
0:00:44.9]} 26... Qxd8 {[%clk 0:01:54.5]} 27. hxg4 {[%clk 0:00:43]} 27... Nxa2
{[%clk 0:01:54.9]} 28. Qa1 {[%clk 0:00:34.7]} 28... Rxf4 {[%clk 0:01:52.2]} 29.
Qxa2 {[%clk 0:00:32.2]} 29... Rxf3 {[%clk 0:01:53.3]} 30. Qxa3 {[%clk
0:00:28.6]} 30... Qd2 {[%clk 0:01:40.7]} 31. Qc5 {[%clk 0:00:24.7]} 31... Rf4
{[%clk 0:01:34.3]} 32. Bh3 {[%clk 0:00:14.3]} 32... Qd1+ {[%clk 0:01:31.6]} 33.
Kh2 {[%clk 0:00:12.1]} 33... Qf3 {[%clk 0:01:29.5]} 34. Bg2 {[%clk 0:00:07.8]}
34... Qxf2 {[%clk 0:01:29.1]} 35. Qe7 {[%clk 0:00:07.8]} 35... Rxg4 {[%clk
0:01:24.5]} 36. Qe8+ {[%clk 0:00:09]} 36... Kg7 {[%clk 0:01:25.2]} 37. Qe5+
{[%clk 0:00:10.7]} 37... Kh6 {[%clk 0:01:25.6]} 0-1

[Event "*** Titled Tuesday Blitz"]
[Site "Chess.com"]
[Date "2019.03.05"]
[Round "4"]
[White "StanislavNovikov"]
[Black "731291"]
[Result "0-1"]
[WhiteElo "2650"]
[BlackElo "2686"]
[TimeControl "180+2"]
[EndTime "13:55:37 PST"]
[Termination "731291 won by resignation"]

1. e4 {[%clk 0:03:01.9]} 1... e6 {[%clk 0:02:59.5]} 2. Qe2 {[%clk 0:03:02.7]}
2... d5 {[%clk 0:03:01.4]} 3. d3 {[%clk 0:03:03.3]} 3... Nf6 {[%clk 0:03:01.7]}
4. Nf3 {[%clk 0:03:03.6]} 4... Be7 {[%clk 0:03:01.9]} 5. g3 {[%clk 0:03:03.9]}
5... c5 {[%clk 0:03:02.7]} 6. Bg2 {[%clk 0:03:04.9]} 6... Nc6 {[%clk 0:03:03.9]}
7. O-O {[%clk 0:03:05.9]} 7... b6 {[%clk 0:03:04.3]} 8. Re1 {[%clk 0:03:04.5]}
8... Bb7 {[%clk 0:03:05]} 9. Nbd2 {[%clk 0:03:01.1]} 9... Qc7 {[%clk 0:03:04.9]}
10. c3 {[%clk 0:02:55.5]} 10... h6 {[%clk 0:03:03.7]} 11. e5 {[%clk 0:02:46.5]}
11... Nd7 {[%clk 0:03:04.3]} 12. d4 {[%clk 0:02:45.4]} 12... cxd4 {[%clk
0:03:01.2]} 13. cxd4 {[%clk 0:02:45.8]} 13... Nb4 {[%clk 0:02:58.6]} 14. Nf1
{[%clk 0:02:13.7]} 14... Ba6 {[%clk 0:02:51.4]} 15. Qd1 {[%clk 0:02:11.3]} 15...
Nc2 {[%clk 0:02:47.8]} 16. Bd2 {[%clk 0:02:11.8]} 16... Nxa1 {[%clk 0:02:46.6]}
17. Qxa1 {[%clk 0:02:12.7]} 17... O-O {[%clk 0:02:40.4]} 18. Ne3 {[%clk
0:02:13.7]} 18... Rac8 {[%clk 0:02:38.3]} 19. Qd1 {[%clk 0:01:50.8]} 19... Bd3
{[%clk 0:02:33.5]} 20. h4 {[%clk 0:01:46.6]} 20... Be4 {[%clk 0:02:25.7]} 21.
Nh2 {[%clk 0:01:45.7]} 21... Bxg2 {[%clk 0:02:17.1]} 22. Kxg2 {[%clk 0:01:47.6]}
22... f5 {[%clk 0:01:50]} 23. exf6 {[%clk 0:01:45.4]} 23... Nxf6 {[%clk
0:01:49.6]} 24. Neg4 {[%clk 0:01:07.6]} 24... Ne4 {[%clk 0:01:46.2]} 25. Nxh6+
{[%clk 0:00:37.9]} 25... gxh6 {[%clk 0:01:44.8]} 26. Qg4+ {[%clk 0:00:33.5]}
26... Kh8 {[%clk 0:01:30.4]} 27. Rxe4 {[%clk 0:00:33.9]} 27... dxe4 {[%clk
0:01:26]} 28. Bxh6 {[%clk 0:00:33.1]} 28... Bf6 {[%clk 0:01:09.4]} 29. Bxf8
{[%clk 0:00:16.6]} 29... Rxf8 {[%clk 0:01:11.3]} 30. Qxe4 {[%clk 0:00:16.4]}
30... Qd6 {[%clk 0:01:01.9]} 31. Nf3 {[%clk 0:00:15.8]} 31... Qd5 {[%clk
0:01:00.8]} 32. Qg4 {[%clk 0:00:15.6]} 32... Qf5 {[%clk 0:00:51.1]} 0-1

[Event "*** Titled Tuesday Blitz"]
[Site "Chess.com"]
[Date "2019.03.05"]
[Round "4"]
[White "DanielNaroditsky"]
[Black "severomorskij"]
[Result "1-0"]
[WhiteElo "2997"]
[BlackElo "2709"]
[TimeControl "180+2"]
[EndTime "13:55:39 PST"]
[Termination "DanielNaroditsky won by resignation"]

1. d4 {[%clk 0:02:53.3]} 1... Nf6 {[%clk 0:03:00.6]} 2. Nc3 {[%clk 0:02:53.9]}
2... d5 {[%clk 0:03:00.6]} 3. Bf4 {[%clk 0:02:55.6]} 3... e6 {[%clk 0:02:47.2]}
4. Nb5 {[%clk 0:02:51.7]} 4... Na6 {[%clk 0:02:45]} 5. e3 {[%clk 0:02:51.3]}
5... c6 {[%clk 0:02:43.2]} 6. Nc3 {[%clk 0:02:52.1]} 6... Bd6 {[%clk 0:02:41.6]}
7. Bg3 {[%clk 0:02:45.8]} 7... O-O {[%clk 0:02:40.7]} 8. Bd3 {[%clk 0:02:44.3]}
8... Nb4 {[%clk 0:02:35]} 9. Nf3 {[%clk 0:02:44.7]} 9... Nxd3+ {[%clk
0:02:35.5]} 10. cxd3 {[%clk 0:02:46.6]} 10... b6 {[%clk 0:02:32.3]} 11. O-O
{[%clk 0:02:39.7]} 11... Bb7 {[%clk 0:02:33.3]} 12. Rc1 {[%clk 0:02:36.5]} 12...
h6 {[%clk 0:02:27.6]} 13. Ne5 {[%clk 0:02:31.8]} 13... Rc8 {[%clk 0:02:11.4]}
14. f4 {[%clk 0:02:08.6]} 14... Be7 {[%clk 0:01:54.3]} 15. f5 {[%clk 0:02:08.8]}
15... exf5 {[%clk 0:01:51.5]} 16. Rxf5 {[%clk 0:02:10.7]} 16... c5 {[%clk
0:01:50.8]} 17. Qf3 {[%clk 0:02:01.8]} 17... cxd4 {[%clk 0:01:51.5]} 18. exd4
{[%clk 0:02:03.7]} 18... b5 {[%clk 0:01:52.2]} 19. Rf1 {[%clk 0:01:58.4]} 19...
b4 {[%clk 0:01:52.7]} 20. Nd1 {[%clk 0:01:59.9]} 20... Rc2 {[%clk 0:01:37.1]}
21. Bh4 {[%clk 0:01:50.8]} 21... a5 {[%clk 0:01:26]} 22. Ne3 {[%clk 0:01:28.6]}
22... Rxb2 {[%clk 0:01:21.6]} 23. Bxf6 {[%clk 0:01:30.3]} 23... Bxf6 {[%clk
0:01:21.7]} 24. N3g4 {[%clk 0:01:32]} 24... Bxe5 {[%clk 0:01:11.7]} 25. Nxe5
{[%clk 0:01:17.7]} 25... f6 {[%clk 0:01:09.2]} 26. Ng6 {[%clk 0:01:09.4]} 26...
Re8 {[%clk 0:01:01]} 27. Qg3 {[%clk 0:01:11.1]} 27... Rxa2 {[%clk 0:00:47.1]}
28. Rxf6 {[%clk 0:01:04.2]} 28... gxf6 {[%clk 0:00:28.2]} 29. Ne5+ {[%clk
0:00:59.3]} 29... Kf8 {[%clk 0:00:27]} 30. Qg6 {[%clk 0:01:00.9]} 30... Rxe5
{[%clk 0:00:21.1]} 31. Rxf6+ {[%clk 0:00:51.3]} 31... Qxf6 {[%clk 0:00:17.9]}
32. Qxf6+ {[%clk 0:00:53.2]} 32... Ke8 {[%clk 0:00:12.3]} 33. dxe5 {[%clk
0:00:54.4]} 33... d4 {[%clk 0:00:10.3]} 34. Qe6+ {[%clk 0:00:54]} 34... Kd8
{[%clk 0:00:10.6]} 35. Qxa2 {[%clk 0:00:55.9]} 1-0

[Event "*** Titled Tuesday Blitz"]
[Site "Chess.com"]
[Date "2019.03.05"]
[Round "4"]
[White "Korchmar_Vasiliy"]
[Black "joppie2"]
[Result "0-1"]
[WhiteElo "2742"]
[BlackElo "2775"]
[TimeControl "180+2"]
[EndTime "13:55:43 PST"]
[Termination "joppie2 won on time"]

1. d4 {[%clk 0:03:01]} 1... d5 {[%clk 0:02:50.5]} 2. c4 {[%clk 0:03:02.1]} 2...
c6 {[%clk 0:02:50.8]} 3. Nf3 {[%clk 0:03:03.3]} 3... Nf6 {[%clk 0:02:52.4]} 4.
g3 {[%clk 0:03:04.6]} 4... g6 {[%clk 0:02:50.7]} 5. Bg2 {[%clk 0:03:04]} 5...
Bg7 {[%clk 0:02:52.4]} 6. cxd5 {[%clk 0:03:05.4]} 6... cxd5 {[%clk 0:02:52.8]}
7. Nc3 {[%clk 0:03:07]} 7... O-O {[%clk 0:02:53.6]} 8. Ne5 {[%clk 0:03:07.9]}
8... e6 {[%clk 0:02:52.2]} 9. O-O {[%clk 0:03:08]} 9... Nfd7 {[%clk 0:02:51.3]}
10. Nf3 {[%clk 0:03:07.4]} 10... Nc6 {[%clk 0:02:51.1]} 11. Bg5 {[%clk
0:03:02.9]} 11... Qb6 {[%clk 0:02:45.4]} 12. Na4 {[%clk 0:03:03.8]} 12... Qa6
{[%clk 0:02:41.8]} 13. Rc1 {[%clk 0:02:53.9]} 13... h6 {[%clk 0:02:41.6]} 14.
Bf4 {[%clk 0:02:52.2]} 14... Nb6 {[%clk 0:02:33.6]} 15. Nxb6 {[%clk 0:01:36]}
15... Qxb6 {[%clk 0:02:35.5]} 16. Qd2 {[%clk 0:01:37.3]} 16... Nxd4 {[%clk
0:02:18.3]} 17. Bxh6 {[%clk 0:01:00]} 17... Nxe2+ {[%clk 0:02:09.3]} 18. Qxe2
{[%clk 0:00:41.2]} 18... Bxh6 {[%clk 0:02:09.7]} 19. Rc3 {[%clk 0:00:42.7]}
19... Bg7 {[%clk 0:02:06.9]} 20. Rb3 {[%clk 0:00:41.7]} 20... Qc7 {[%clk
0:01:58]} 21. h4 {[%clk 0:00:36.6]} 21... e5 {[%clk 0:01:19.9]} 22. h5 {[%clk
0:00:37.7]} 22... e4 {[%clk 0:01:20.5]} 23. Nh2 {[%clk 0:00:29.1]} 23... Be6
{[%clk 0:01:18]} 24. hxg6 {[%clk 0:00:19]} 24... fxg6 {[%clk 0:01:19.9]} 25. Ng4
{[%clk 0:00:14.7]} 25... Qd7 {[%clk 0:01:21.2]} 26. Bh3 {[%clk 0:00:13.6]} 26...
d4 {[%clk 0:01:19.3]} 27. Qxe4 {[%clk 0:00:11.5]} 27... Rae8 {[%clk 0:01:00.3]}
28. Rxb7 {[%clk 0:00:03.3]} 28... Bxg4 {[%clk 0:01:01.4]} 29. Bxg4 {[%clk
0:00:02.2]} 29... Rxe4 {[%clk 0:00:44.3]} 0-1

[Event "*** Titled Tuesday Blitz"]
[Site "Chess.com"]
[Date "2019.03.05"]
[Round "4"]
[White "MITerryble"]
[Black "Koksik_13"]
[Result "1-0"]
[WhiteElo "2807"]
[BlackElo "2636"]
[TimeControl "180+2"]
[EndTime "13:55:50 PST"]
[Termination "MITerryble won by resignation"]

1. d4 {[%clk 0:03:01.9]} 1... e6 {[%clk 0:03:00.9]} 2. Nf3 {[%clk 0:03:02.7]}
2... d5 {[%clk 0:03:02.3]} 3. c4 {[%clk 0:03:03.5]} 3... a6 {[%clk 0:03:03.5]}
4. e3 {[%clk 0:03:03.7]} 4... Nf6 {[%clk 0:03:03.4]} 5. b3 {[%clk 0:03:04]} 5...
Be7 {[%clk 0:03:04.2]} 6. Bb2 {[%clk 0:03:04.9]} 6... O-O {[%clk 0:03:05.7]} 7.
Bd3 {[%clk 0:03:06.1]} 7... c5 {[%clk 0:03:06.5]} 8. O-O {[%clk 0:03:07.2]} 8...
cxd4 {[%clk 0:03:07.6]} 9. exd4 {[%clk 0:03:07.8]} 9... Nc6 {[%clk 0:03:09.3]}
10. a3 {[%clk 0:03:08.6]} 10... b6 {[%clk 0:03:10.5]} 11. Nbd2 {[%clk
0:03:07.2]} 11... Bb7 {[%clk 0:03:11.9]} 12. Re1 {[%clk 0:03:08.5]} 12... g6
{[%clk 0:03:12]} 13. Rc1 {[%clk 0:03:09]} 13... Rc8 {[%clk 0:03:13.1]} 14. c5
{[%clk 0:03:05.1]} 14... bxc5 {[%clk 0:03:13.7]} 15. dxc5 {[%clk 0:03:07]} 15...
a5 {[%clk 0:03:14.2]} 16. Qe2 {[%clk 0:02:23.2]} 16... Nd7 {[%clk 0:03:14.1]}
17. Qe3 {[%clk 0:02:24]} 17... Bf6 {[%clk 0:03:08.8]} 18. Bxf6 {[%clk 0:02:21]}
18... Qxf6 {[%clk 0:03:10.7]} 19. Bb5 {[%clk 0:02:19.1]} 19... Rfe8 {[%clk
0:02:49.3]} 20. b4 {[%clk 0:02:00.7]} 20... axb4 {[%clk 0:02:49.6]} 21. axb4
{[%clk 0:02:02.6]} 21... e5 {[%clk 0:02:49.9]} 22. Qc3 {[%clk 0:01:54.4]} 22...
e4 {[%clk 0:02:43.6]} 23. Qxf6 {[%clk 0:01:54]} 23... Nxf6 {[%clk 0:02:44.8]}
24. Bxc6 {[%clk 0:01:54.8]} 24... Bxc6 {[%clk 0:02:40.3]} 25. Nd4 {[%clk
0:01:56.1]} 25... Ba4 {[%clk 0:02:34.9]} 26. Ra1 {[%clk 0:01:28.2]} 26... Bd7
{[%clk 0:02:33.6]} 27. c6 {[%clk 0:01:16.1]} 27... Bf5 {[%clk 0:01:24.5]} 28. b5
{[%clk 0:01:12.9]} 28... Rb8 {[%clk 0:01:25.2]} 29. Ra6 {[%clk 0:01:05]} 29...
Rec8 {[%clk 0:01:23.3]} 30. c7 {[%clk 0:01:02]} 30... Rxc7 {[%clk 0:01:23.7]}
31. Rxf6 {[%clk 0:01:03]} 31... Be6 {[%clk 0:01:19.9]} 32. f3 {[%clk 0:00:52.4]}
32... Rc3 {[%clk 0:01:14.9]} 33. fxe4 {[%clk 0:00:49.9]} 33... Rd3 {[%clk
0:01:16.2]} 34. N2f3 {[%clk 0:00:46.7]} 34... dxe4 {[%clk 0:01:15.9]} 35. Rxe4
{[%clk 0:00:48.6]} 35... Kg7 {[%clk 0:01:10.4]} 36. Rff4 {[%clk 0:00:42.9]}
36... Bd5 {[%clk 0:01:11.6]} 37. Re5 {[%clk 0:00:39.5]} 37... Rc8 {[%clk
0:01:09.3]} 38. Rxd5 {[%clk 0:00:34.9]} 38... Rc1+ {[%clk 0:01:09.9]} 39. Kf2
{[%clk 0:00:35.8]} 39... f5 {[%clk 0:00:57.7]} 40. Nxf5+ {[%clk 0:00:35.8]} 1-0